[Event "*** Titled Tuesday Blitz"]
[Site "Chess.com"]
[Date "2021.03.09"]
[Round "5"]
[White "Iball95"]
[Black "atbenina64"]
[Result "0-1"]
[WhiteElo "2642"]
[BlackElo "2552"]
[TimeControl "180+1"]
[EndTime "11:00:04 PST"]
[Termination "atbenina64 won by checkmate"]

1. e4 {[%clk 0:01:50.8]} 1... c6 {[%clk 0:02:56]} 2. Nc3 {[%clk 0:01:50.5]} 2...
d5 {[%clk 0:02:56.9]} 3. Nf3 {[%clk 0:01:50.5]} 3... Bg4 {[%clk 0:02:55.9]} 4.
h3 {[%clk 0:01:48.3]} 4... Bxf3 {[%clk 0:02:56.2]} 5. Qxf3 {[%clk 0:01:49.2]}
5... e6 {[%clk 0:02:56.8]} 6. d4 {[%clk 0:01:48]} 6... dxe4 {[%clk 0:02:56.7]}
7. Nxe4 {[%clk 0:01:48.9]} 7... Qxd4 {[%clk 0:02:54.6]} 8. c3 {[%clk 0:01:48.1]}
8... Qd8 {[%clk 0:02:53.6]} 9. Bd3 {[%clk 0:01:48.2]} 9... Nd7 {[%clk
0:02:52.4]} 10. O-O {[%clk 0:01:48.5]} 10... Ne5 {[%clk 0:02:52.7]} 11. Qg3
{[%clk 0:01:37.2]} 11... Nxd3 {[%clk 0:02:45.7]} 12. Rd1 {[%clk 0:01:33.7]}
12... Qd5 {[%clk 0:02:25.6]} 13. Qxd3 {[%clk 0:01:26.6]} 13... Rd8 {[%clk
0:02:06.5]} 14. Qxd5 {[%clk 0:01:19.8]} 14... Rxd5 {[%clk 0:02:06.5]} 15. Re1
{[%clk 0:01:18.9]} 15... Be7 {[%clk 0:01:57.4]} 16. Be3 {[%clk 0:01:18.9]} 16...
a6 {[%clk 0:01:44.1]} 17. c4 {[%clk 0:01:18.6]} 17... Rd7 {[%clk 0:01:35.7]} 18.
Nc5 {[%clk 0:01:07]} 18... Bxc5 {[%clk 0:01:16.2]} 19. Bxc5 {[%clk 0:01:07.9]}
19... Nf6 {[%clk 0:01:11.8]} 20. b4 {[%clk 0:00:58]} 20... Rd3 {[%clk
0:00:41.3]} 21. Red1 {[%clk 0:00:36.4]} 21... Rxd1+ {[%clk 0:00:29.7]} 22. Rxd1
{[%clk 0:00:37.3]} 22... Nd7 {[%clk 0:00:25.6]} 23. Bd6 {[%clk 0:00:32.6]} 23...
Nb6 {[%clk 0:00:18.2]} 24. Rd4 {[%clk 0:00:32.5]} 24... Nc8 {[%clk 0:00:12.6]}
25. Bc7 {[%clk 0:00:25]} 25... Ke7 {[%clk 0:00:13]} 26. a4 {[%clk 0:00:25.3]}
26... Re8 {[%clk 0:00:10.2]} 27. Kf1 {[%clk 0:00:24.3]} 27... f6 {[%clk
0:00:08.7]} 28. b5 {[%clk 0:00:24.4]} 28... e5 {[%clk 0:00:08.4]} 29. Rd3 {[%clk
0:00:22.7]} 29... axb5 {[%clk 0:00:06.9]} 30. cxb5 {[%clk 0:00:21.6]} 30... cxb5
{[%clk 0:00:06.1]} 31. axb5 {[%clk 0:00:22.5]} 31... Ke6 {[%clk 0:00:06.6]} 32.
g4 {[%clk 0:00:20.4]} 32... Re7 {[%clk 0:00:05.5]} 33. b6 {[%clk 0:00:19.4]}
33... Rd7 {[%clk 0:00:05.4]} 34. Rc3 {[%clk 0:00:18.5]} 34... Ne7 {[%clk
0:00:04.2]} 35. Rc5 {[%clk 0:00:17.2]} 35... Nd5 {[%clk 0:00:04]} 36. Ra5 {[%clk
0:00:14.7]} 36... Nxc7 {[%clk 0:00:03.6]} 37. bxc7 {[%clk 0:00:14.3]} 37... Rxc7
{[%clk 0:00:04.5]} 38. Rb5 {[%clk 0:00:15.2]} 38... Kd6 {[%clk 0:00:04.4]} 39.
Ke2 {[%clk 0:00:15.2]} 39... Kc6 {[%clk 0:00:05]} 40. Rb3 {[%clk 0:00:15.1]}
40... Rd7 {[%clk 0:00:05.9]} 41. Rc3+ {[%clk 0:00:14.6]} 41... Kb5 {[%clk
0:00:06]} 42. Rb3+ {[%clk 0:00:15]} 42... Kc4 {[%clk 0:00:06.4]} 43. Rb6 {[%clk
0:00:15.2]} 43... Kc5 {[%clk 0:00:06.5]} 44. Rb1 {[%clk 0:00:15.7]} 44... b5
{[%clk 0:00:06.6]} 45. Ke3 {[%clk 0:00:16.1]} 45... b4 {[%clk 0:00:06.4]} 46. f4
{[%clk 0:00:15.4]} 46... exf4+ {[%clk 0:00:04.9]} 47. Kxf4 {[%clk 0:00:16.3]}
47... Kc4 {[%clk 0:00:04.6]} 48. Rc1+ {[%clk 0:00:15.9]} 48... Kb3 {[%clk
0:00:04.7]} 49. Rd1 {[%clk 0:00:15.9]} 49... Rxd1 {[%clk 0:00:04.1]} 50. h4
{[%clk 0:00:16.4]} 50... Rd4+ {[%clk 0:00:04.2]} 51. Kf5 {[%clk 0:00:16.4]}
51... g6+ {[%clk 0:00:04.7]} 52. Kxf6 {[%clk 0:00:16.3]} 52... Rxg4 {[%clk
0:00:05.3]} 53. h5 {[%clk 0:00:17.2]} 53... gxh5 {[%clk 0:00:05.8]} 54. Kf5
{[%clk 0:00:18.1]} 54... Kc4 {[%clk 0:00:06.4]} 55. Ke5 {[%clk 0:00:19]} 55...
b3 {[%clk 0:00:07.3]} 56. Kf5 {[%clk 0:00:19.5]} 56... b2 {[%clk 0:00:08.2]} 57.
Ke5 {[%clk 0:00:20.4]} 57... b1=Q {[%clk 0:00:08.9]} 58. Kf6 {[%clk 0:00:17.2]}
58... Rg6+ {[%clk 0:00:08.2]} 59. Ke5 {[%clk 0:00:14.9]} 59... Qb8+ {[%clk
0:00:07.1]} 60. Kf5 {[%clk 0:00:14.8]} 60... Qc8+ {[%clk 0:00:05.6]} 61. Ke5
{[%clk 0:00:14.6]} 61... Qe6+ {[%clk 0:00:05.7]} 62. Kf4 {[%clk 0:00:14.3]}
62... Rg4+ {[%clk 0:00:06.3]} 63. Kf3 {[%clk 0:00:15.2]} 63... Qe4+ {[%clk
0:00:06.7]} 64. Kf2 {[%clk 0:00:16.1]} 64... Rg2+ {[%clk 0:00:07.2]} 65. Kf1
{[%clk 0:00:16]} 65... Qe2# {[%clk 0:00:07.5]} 0-1

[Event "*** Titled Tuesday Blitz"]
[Site "Chess.com"]
[Date "2021.03.09"]
[Round "5"]
[White "Volodar_Murzin"]
[Black "HackingKid98"]
[Result "1-0"]
[WhiteElo "2658"]
[BlackElo "2454"]
[TimeControl "180+1"]
[EndTime "11:00:04 PST"]
[Termination "Volodar_Murzin won by checkmate"]

1. e4 {[%clk 0:02:11.1]} 1... c6 {[%clk 0:02:58.5]} 2. d4 {[%clk 0:02:10.8]}
2... d5 {[%clk 0:02:59.4]} 3. f3 {[%clk 0:02:10.9]} 3... Qb6 {[%clk 0:02:51]} 4.
Nc3 {[%clk 0:02:09.2]} 4... e6 {[%clk 0:02:48.4]} 5. a3 {[%clk 0:01:55.4]} 5...
Nf6 {[%clk 0:02:46.9]} 6. Be3 {[%clk 0:01:51.8]} 6... dxe4 {[%clk 0:02:36.4]} 7.
fxe4 {[%clk 0:01:43.6]} 7... e5 {[%clk 0:02:36.5]} 8. Nf3 {[%clk 0:01:42.2]}
8... Bg4 {[%clk 0:02:22.8]} 9. Bc4 {[%clk 0:01:23.1]} 9... exd4 {[%clk
0:02:18.5]} 10. Bxd4 {[%clk 0:01:20.8]} 10... Bc5 {[%clk 0:02:16.3]} 11. Na4
{[%clk 0:01:17.2]} 11... Qa5+ {[%clk 0:02:05.3]} 12. b4 {[%clk 0:01:13]} 12...
Qxa4 {[%clk 0:02:05.2]} 13. Bxc5 {[%clk 0:01:12.1]} 13... Nbd7 {[%clk
0:01:56.7]} 14. Bd6 {[%clk 0:01:01.8]} 14... Nxe4 {[%clk 0:01:33.1]} 15. O-O
{[%clk 0:00:50.1]} 15... O-O-O {[%clk 0:01:15.2]} 16. Be7 {[%clk 0:00:46.8]}
16... Rde8 {[%clk 0:00:46.5]} 17. Bh4 {[%clk 0:00:39.1]} 17... Ne5 {[%clk
0:00:41.4]} 18. Bb3 {[%clk 0:00:35.2]} 18... Qb5 {[%clk 0:00:37.3]} 19. Qd4
{[%clk 0:00:30.3]} 19... Qb6 {[%clk 0:00:19.6]} 20. Qxb6 {[%clk 0:00:27.6]}
20... axb6 {[%clk 0:00:20.5]} 21. Nxe5 {[%clk 0:00:27.6]} 21... Rxe5 {[%clk
0:00:21.4]} 22. Rxf7 {[%clk 0:00:25.3]} 22... g5 {[%clk 0:00:21.3]} 23. Be1
{[%clk 0:00:20.8]} 23... Rd8 {[%clk 0:00:20.8]} 24. Rxh7 {[%clk 0:00:17.9]}
24... Nd2 {[%clk 0:00:20.9]} 25. Bg3 {[%clk 0:00:16.5]} 25... Nxb3 {[%clk
0:00:14.9]} 26. cxb3 {[%clk 0:00:14.6]} 26... Red5 {[%clk 0:00:15.1]} 27. h3
{[%clk 0:00:08.1]} 27... Bf5 {[%clk 0:00:13.1]} 28. Rc7+ {[%clk 0:00:07.4]}
28... Kb8 {[%clk 0:00:13.2]} 29. Rg7+ {[%clk 0:00:04.1]} 29... Ka7 {[%clk
0:00:13.4]} 30. Rxg5 {[%clk 0:00:04.5]} 30... Be4 {[%clk 0:00:13.7]} 31. Rxd5
{[%clk 0:00:01]} 31... Rxd5 {[%clk 0:00:14.6]} 32. Bf2 {[%clk 0:00:01.5]} 32...
Rd2 {[%clk 0:00:13.3]} 33. a4 {[%clk 0:00:01.2]} 33... Ka6 {[%clk 0:00:13.4]}
34. a5 {[%clk 0:00:01.7]} 34... b5 {[%clk 0:00:11.4]} 35. Bc5 {[%clk 0:00:02]}
35... Rxg2+ {[%clk 0:00:09.1]} 36. Kf1 {[%clk 0:00:02.9]} 36... Rh2 {[%clk
0:00:09.1]} 37. Re1 {[%clk 0:00:03.8]} 37... Rh1+ {[%clk 0:00:08.6]} 38. Kf2
{[%clk 0:00:03.8]} 38... Rxe1 {[%clk 0:00:08.7]} 39. Kxe1 {[%clk 0:00:04]} 39...
Bd5 {[%clk 0:00:07.4]} 40. Kf2 {[%clk 0:00:04.4]} 40... Bxb3 {[%clk 0:00:07.7]}
41. Kg3 {[%clk 0:00:05]} 41... b6 {[%clk 0:00:04.7]} 42. axb6 {[%clk 0:00:04.8]}
42... Kb7 {[%clk 0:00:05]} 43. Kf4 {[%clk 0:00:05]} 43... Kc8 {[%clk 0:00:05.4]}
44. h4 {[%clk 0:00:05.6]} 44... Bd1 {[%clk 0:00:04.3]} 45. Ke5 {[%clk
0:00:05.9]} 45... Kd7 {[%clk 0:00:05.2]} 46. Kf6 {[%clk 0:00:06.5]} 46... Kc8
{[%clk 0:00:03.7]} 47. Kg6 {[%clk 0:00:06.4]} 47... Kb7 {[%clk 0:00:03]} 48. h5
{[%clk 0:00:06.3]} 48... Bxh5+ {[%clk 0:00:01.2]} 49. Kxh5 {[%clk 0:00:06.5]}
49... Ka6 {[%clk 0:00:02.1]} 50. Kg5 {[%clk 0:00:06.9]} 50... Kb7 {[%clk
0:00:03]} 51. Kf5 {[%clk 0:00:07.2]} 51... Ka6 {[%clk 0:00:03.9]} 52. Ke5 {[%clk
0:00:07.6]} 52... Kb7 {[%clk 0:00:04.8]} 53. Kd6 {[%clk 0:00:07.1]} 53... Ka6
{[%clk 0:00:05.7]} 54. b7 {[%clk 0:00:05.9]} 54... Kxb7 {[%clk 0:00:06.6]} 55.
Kd7 {[%clk 0:00:06.4]} 55... Ka6 {[%clk 0:00:05.9]} 56. Be7 {[%clk 0:00:05.7]}
56... Kb7 {[%clk 0:00:06.8]} 57. Bd8 {[%clk 0:00:05.7]} 57... Ka6 {[%clk
0:00:07.7]} 58. Kxc6 {[%clk 0:00:05.2]} 58... Ka7 {[%clk 0:00:07.7]} 59. Kxb5
{[%clk 0:00:06.1]} 59... Kb7 {[%clk 0:00:07.7]} 60. Kc5 {[%clk 0:00:06.5]} 60...
Ka7 {[%clk 0:00:08.6]} 61. Bh4 {[%clk 0:00:06.9]} 61... Kb7 {[%clk 0:00:09.5]}
62. b5 {[%clk 0:00:07.8]} 62... Ka7 {[%clk 0:00:10]} 63. Kc6 {[%clk 0:00:08]}
63... Kb8 {[%clk 0:00:08.7]} 64. b6 {[%clk 0:00:08.4]} 64... Ka8 {[%clk
0:00:09.6]} 65. b7+ {[%clk 0:00:08.9]} 65... Kb8 {[%clk 0:00:10.5]} 66. Bg3+
{[%clk 0:00:08.9]} 66... Ka7 {[%clk 0:00:11]} 67. b8=Q+ {[%clk 0:00:09.7]} 67...
Ka6 {[%clk 0:00:11.9]} 68. Qa8# {[%clk 0:00:10.4]} 1-0

[Event "*** Titled Tuesday Blitz"]
[Site "Chess.com"]
[Date "2021.03.09"]
[Round "5"]
[White "Slovak_fighter2000"]
[Black "StockholmMissile"]
[Result "0-1"]
[WhiteElo "2421"]
[BlackElo "2570"]
[TimeControl "180+1"]
[EndTime "11:00:08 PST"]
[Termination "StockholmMissile won by checkmate"]

1. d4 {[%clk 0:03:00.9]} 1... d5 {[%clk 0:02:57.1]} 2. c4 {[%clk 0:03:01.1]}
2... c6 {[%clk 0:02:56.8]} 3. Nf3 {[%clk 0:03:01.6]} 3... Nf6 {[%clk 0:02:56.5]}
4. Nc3 {[%clk 0:03:02]} 4... e6 {[%clk 0:02:55.7]} 5. e3 {[%clk 0:03:01.6]} 5...
a6 {[%clk 0:02:54.8]} 6. Qc2 {[%clk 0:03:00.7]} 6... dxc4 {[%clk 0:02:51.9]} 7.
Bxc4 {[%clk 0:02:59.6]} 7... b5 {[%clk 0:02:43.8]} 8. Bd3 {[%clk 0:02:59.9]}
8... Bb7 {[%clk 0:02:43.7]} 9. O-O {[%clk 0:02:59.8]} 9... c5 {[%clk 0:02:43.8]}
10. dxc5 {[%clk 0:02:56.5]} 10... Bxc5 {[%clk 0:02:21.7]} 11. Nxb5 {[%clk
0:02:54.1]} 11... Nbd7 {[%clk 0:02:12.5]} 12. Nc3 {[%clk 0:02:48.6]} 12... O-O
{[%clk 0:02:08.8]} 13. Ne4 {[%clk 0:02:45.2]} 13... Be7 {[%clk 0:02:05.3]} 14.
Nxf6+ {[%clk 0:02:40.9]} 14... Nxf6 {[%clk 0:02:06.2]} 15. Be2 {[%clk
0:02:36.5]} 15... Rc8 {[%clk 0:01:53.6]} 16. Qa4 {[%clk 0:02:14.5]} 16... Qb6
{[%clk 0:01:46.3]} 17. b3 {[%clk 0:01:57.9]} 17... Rc2 {[%clk 0:01:40.6]} 18.
Bd3 {[%clk 0:01:54.1]} 18... Rc5 {[%clk 0:01:39.7]} 19. Qf4 {[%clk 0:01:34.7]}
19... Rd8 {[%clk 0:01:37.4]} 20. Bc4 {[%clk 0:01:31.6]} 20... Rf5 {[%clk
0:01:36.2]} 21. Qg3 {[%clk 0:01:30]} 21... Bxf3 {[%clk 0:01:30.7]} 22. gxf3
{[%clk 0:01:30.9]} 22... Ne4 {[%clk 0:01:01]} 23. fxe4 {[%clk 0:01:07.5]} 23...
Rg5 {[%clk 0:01:00.9]} 24. Bb2 {[%clk 0:01:04.7]} 24... Rxg3+ {[%clk 0:01:00.4]}
25. hxg3 {[%clk 0:01:05.6]} 25... Bf6 {[%clk 0:00:54.4]} 26. e5 {[%clk
0:01:01.9]} 26... Be7 {[%clk 0:00:53.7]} 27. Rfd1 {[%clk 0:00:59.9]} 27... Rxd1+
{[%clk 0:00:43.9]} 28. Rxd1 {[%clk 0:01:00.8]} 28... h5 {[%clk 0:00:42.1]} 29.
Bd4 {[%clk 0:00:50.5]} 29... Qa5 {[%clk 0:00:36.4]} 30. a4 {[%clk 0:00:48.1]}
30... h4 {[%clk 0:00:28.6]} 31. Kg2 {[%clk 0:00:45.2]} 31... hxg3 {[%clk
0:00:27.5]} 32. Kxg3 {[%clk 0:00:46.1]} 32... Bd8 {[%clk 0:00:24.9]} 33. Kf3
{[%clk 0:00:40.6]} 33... Bc7 {[%clk 0:00:24.6]} 34. Ke4 {[%clk 0:00:37.4]} 34...
f5+ {[%clk 0:00:22.5]} 35. Kd3 {[%clk 0:00:27.6]} 35... Kf7 {[%clk 0:00:20]} 36.
f4 {[%clk 0:00:26.9]} 36... Bd8 {[%clk 0:00:16.9]} 37. Rg1 {[%clk 0:00:25.8]}
37... Be7 {[%clk 0:00:16.4]} 38. Bc3 {[%clk 0:00:21.6]} 38... Qd8+ {[%clk
0:00:14.7]} 39. Bd4 {[%clk 0:00:21.8]} 39... a5 {[%clk 0:00:15.2]} 40. Ke2
{[%clk 0:00:20.8]} 40... Qb8 {[%clk 0:00:14.5]} 41. Rf1 {[%clk 0:00:18.1]} 41...
Qb4 {[%clk 0:00:14.4]} 42. Rg1 {[%clk 0:00:16.5]} 42... Qa3 {[%clk 0:00:14.3]}
43. Kf3 {[%clk 0:00:16]} 43... Bc5 {[%clk 0:00:12.9]} 44. Bxc5 {[%clk
0:00:14.1]} 44... Qxc5 {[%clk 0:00:13.8]} 45. Rd1 {[%clk 0:00:12.8]} 45... Qc6+
{[%clk 0:00:14.1]} 46. Kf2 {[%clk 0:00:11.9]} 46... Qe4 {[%clk 0:00:10.8]} 47.
Rd6 {[%clk 0:00:11.1]} 47... g5 {[%clk 0:00:10.9]} 48. Rxe6 {[%clk 0:00:05.9]}
48... gxf4 {[%clk 0:00:09.7]} 49. Rd6+ {[%clk 0:00:02]} 49... Kg7 {[%clk
0:00:09.4]} 50. exf4 {[%clk 0:00:01.4]} 50... Qxf4+ {[%clk 0:00:10.3]} 51. Kg2
{[%clk 0:00:02]} 51... Qxe5 {[%clk 0:00:10.9]} 52. Rd5 {[%clk 0:00:02.5]} 52...
Qe4+ {[%clk 0:00:09.7]} 53. Kf2 {[%clk 0:00:03.1]} 53... f4 {[%clk 0:00:10.2]}
54. Rd7+ {[%clk 0:00:01.8]} 54... Kf6 {[%clk 0:00:09.8]} 55. Rd5 {[%clk
0:00:02.6]} 55... Qe3+ {[%clk 0:00:09.3]} 56. Kf1 {[%clk 0:00:03.2]} 56... f3
{[%clk 0:00:09.6]} 57. Rb5 {[%clk 0:00:02.2]} 57... Qd2 {[%clk 0:00:07.7]} 58.
Rd5 {[%clk 0:00:01]} 58... Qg2+ {[%clk 0:00:07.4]} 59. Ke1 {[%clk 0:00:01.8]}
59... f2+ {[%clk 0:00:07.9]} 60. Kd1 {[%clk 0:00:02.1]} 60... Qxd5+ {[%clk
0:00:06.5]} 61. Bxd5 {[%clk 0:00:01.9]} 61... f1=Q+ {[%clk 0:00:07.4]} 62. Kc2
{[%clk 0:00:02]} 62... Qf2+ {[%clk 0:00:07.4]} 63. Kc3 {[%clk 0:00:01.8]} 63...
Qc5+ {[%clk 0:00:08.3]} 64. Bc4 {[%clk 0:00:01.5]} 64... Ke5 {[%clk 0:00:08.9]}
65. Kd3 {[%clk 0:00:01.9]} 65... Qb4 {[%clk 0:00:09.4]} 66. Kc2 {[%clk
0:00:02.8]} 66... Kd6 {[%clk 0:00:09.9]} 67. Kb2 {[%clk 0:00:03.2]} 67... Kc5
{[%clk 0:00:10.8]} 68. Ka2 {[%clk 0:00:04.1]} 68... Kd4 {[%clk 0:00:11.6]} 69.
Kb2 {[%clk 0:00:04.4]} 69... Qd2+ {[%clk 0:00:11.2]} 70. Ka3 {[%clk 0:00:04.2]}
70... Kc3 {[%clk 0:00:12.1]} 71. b4 {[%clk 0:00:04.3]} 71... Qb2# {[%clk
0:00:12.9]} 0-1

[Event "*** Titled Tuesday Blitz"]
[Site "Chess.com"]
[Date "2021.03.09"]
[Round "5"]
[White "chessprincesa1"]
[Black "MaxLeto"]
[Result "1-0"]
[WhiteElo "2255"]
[BlackElo "2377"]
[TimeControl "180+1"]
[EndTime "11:00:08 PST"]
[Termination "chessprincesa1 won by resignation"]

1. d4 {[%clk 0:03:00.9]} 1... d5 {[%clk 0:02:58.6]} 2. c4 {[%clk 0:03:00.7]}
2... e6 {[%clk 0:02:58]} 3. Nc3 {[%clk 0:02:58.3]} 3... Be7 {[%clk 0:02:57.6]}
4. Qc2 {[%clk 0:02:53.1]} 4... Nf6 {[%clk 0:02:56.8]} 5. Bg5 {[%clk 0:02:50.4]}
5... O-O {[%clk 0:02:40.1]} 6. e3 {[%clk 0:02:46.8]} 6... a6 {[%clk 0:02:40]} 7.
cxd5 {[%clk 0:02:42.9]} 7... exd5 {[%clk 0:02:39.8]} 8. Bd3 {[%clk 0:02:42.6]}
8... h6 {[%clk 0:02:39.8]} 9. Bh4 {[%clk 0:02:40.7]} 9... Nc6 {[%clk 0:02:34]}
10. a3 {[%clk 0:02:38.6]} 10... Be6 {[%clk 0:02:21.2]} 11. Nf3 {[%clk 0:02:36]}
11... Ne8 {[%clk 0:02:01.3]} 12. Bg3 {[%clk 0:02:30.1]} 12... Nd6 {[%clk
0:01:57.8]} 13. O-O {[%clk 0:02:23.4]} 13... Na5 {[%clk 0:01:53.1]} 14. Ne5
{[%clk 0:02:19.3]} 14... Nac4 {[%clk 0:01:46.1]} 15. Bxc4 {[%clk 0:02:13.6]}
15... Nxc4 {[%clk 0:01:41.6]} 16. Nxc4 {[%clk 0:02:11.3]} 16... dxc4 {[%clk
0:01:42.5]} 17. Rad1 {[%clk 0:02:07.6]} 17... c6 {[%clk 0:01:36.7]} 18. e4
{[%clk 0:01:43.6]} 18... b5 {[%clk 0:01:22.4]} 19. d5 {[%clk 0:01:41.6]} 19...
cxd5 {[%clk 0:01:23.3]} 20. exd5 {[%clk 0:01:41.6]} 20... Bg4 {[%clk 0:01:20.6]}
21. f3 {[%clk 0:01:33.7]} 21... Bc5+ {[%clk 0:01:04.7]} 22. Kh1 {[%clk
0:01:33.4]} 22... Bh5 {[%clk 0:01:04.9]} 23. Ne4 {[%clk 0:01:30.2]} 23... Bg6
{[%clk 0:01:03.5]} 24. Qc3 {[%clk 0:01:26.2]} 24... Bb6 {[%clk 0:01:00.7]} 25.
Rfe1 {[%clk 0:01:12.3]} 25... Ba5 {[%clk 0:00:52.5]} 26. Qd4 {[%clk 0:01:01.8]}
26... Bxe1 {[%clk 0:00:52.3]} 27. Rxe1 {[%clk 0:01:02.7]} 27... Re8 {[%clk
0:00:48.1]} 28. d6 {[%clk 0:00:59.9]} 28... Qd7 {[%clk 0:00:43.8]} 29. Nc5
{[%clk 0:00:55]} 29... Rxe1+ {[%clk 0:00:42.7]} 30. Bxe1 {[%clk 0:00:55.9]}
30... Qd8 {[%clk 0:00:15.8]} 31. Bc3 {[%clk 0:00:47.5]} 31... f6 {[%clk
0:00:12.5]} 32. d7 {[%clk 0:00:43.1]} 32... Bf7 {[%clk 0:00:05.7]} 33. Nb7
{[%clk 0:00:41.5]} 33... Qe7 {[%clk 0:00:04.6]} 34. Bb4 {[%clk 0:00:36.8]} 34...
Qe6 {[%clk 0:00:02.3]} 35. d8=Q+ {[%clk 0:00:35.2]} 35... Rxd8 {[%clk
0:00:02.7]} 36. Nxd8 {[%clk 0:00:30.1]} 36... Qe2 {[%clk 0:00:02.9]} 37. Nxf7
{[%clk 0:00:28.7]} 37... Kxf7 {[%clk 0:00:02.2]} 38. Qd5+ {[%clk 0:00:26.5]}
38... Kg6 {[%clk 0:00:01.4]} 39. Qe4+ {[%clk 0:00:26.6]} 39... Qxe4 {[%clk
0:00:01.7]} 40. fxe4 {[%clk 0:00:27.5]} 40... Kg5 {[%clk 0:00:02.3]} 41. Bd2+
{[%clk 0:00:25]} 41... Kg4 {[%clk 0:00:02.4]} 42. Kg1 {[%clk 0:00:25.2]} 42...
g6 {[%clk 0:00:02.1]} 43. Bxh6 {[%clk 0:00:24.2]} 43... f5 {[%clk 0:00:02.6]}
44. exf5 {[%clk 0:00:23.7]} 44... gxf5 {[%clk 0:00:02.8]} 45. Bd2 {[%clk
0:00:24.3]} 45... f4 {[%clk 0:00:03.2]} 46. Kf2 {[%clk 0:00:24.7]} 46... Kf5
{[%clk 0:00:03.3]} 47. Kf3 {[%clk 0:00:24.6]} 47... Ke5 {[%clk 0:00:03.8]} 48.
Bxf4+ {[%clk 0:00:23.9]} 48... Kd4 {[%clk 0:00:04.7]} 49. Bd2 {[%clk 0:00:24.2]}
49... Kd3 {[%clk 0:00:05.6]} 50. Bb4 {[%clk 0:00:24.2]} 50... Kc2 {[%clk
0:00:06]} 51. Bc3 {[%clk 0:00:23.4]} 51... Kb3 {[%clk 0:00:06.9]} 52. h4 {[%clk
0:00:22.7]} 52... a5 {[%clk 0:00:06.9]} 53. h5 {[%clk 0:00:21.9]} 53... b4
{[%clk 0:00:06.9]} 54. axb4 {[%clk 0:00:22.1]} 54... axb4 {[%clk 0:00:07.8]} 55.
Bf6 {[%clk 0:00:21.7]} 55... c3 {[%clk 0:00:07]} 56. bxc3 {[%clk 0:00:22]} 56...
bxc3 {[%clk 0:00:06.9]} 57. Bxc3 {[%clk 0:00:22.6]} 57... Kc2 {[%clk 0:00:05.2]}
58. h6 {[%clk 0:00:23.5]} 58... Kc1 {[%clk 0:00:05]} 59. h7 {[%clk 0:00:24.4]}
59... Kd1 {[%clk 0:00:05.9]} 60. h8=Q {[%clk 0:00:23.8]} 60... Kc1 {[%clk
0:00:06.8]} 61. Qh1+ {[%clk 0:00:23.5]} 61... Kc2 {[%clk 0:00:06.7]} 62. Ke3
{[%clk 0:00:23.9]} 62... Kb3 {[%clk 0:00:06.6]} 63. Qb1+ {[%clk 0:00:23.9]}
63... Kc4 {[%clk 0:00:07.5]} 64. g4 {[%clk 0:00:22.6]} 64... Kd5 {[%clk
0:00:08.4]} 65. Qb5+ {[%clk 0:00:22.1]} 65... Ke6 {[%clk 0:00:09.3]} 66. Ke4
{[%clk 0:00:22]} 66... Kf7 {[%clk 0:00:10.2]} 67. Qb6 {[%clk 0:00:21.5]} 67...
Ke7 {[%clk 0:00:10.1]} 68. Ke5 {[%clk 0:00:21.8]} 68... Ke8 {[%clk 0:00:09.1]}
69. Qb7 {[%clk 0:00:21.5]} 69... Kf8 {[%clk 0:00:09]} 70. Ke6 {[%clk 0:00:21]}
1-0